fUST/lending_fUST_20240801
["ID","MTS","AMOUNT","RATE_DAILY","PERIOD"]
[333780918,1722489041468,-500.0,0.00013971,2]
[333780919,1722489041478,-2052.55,0.00013971,2]
[333780920,1722489041488,-2052.55,0.00013971,2]
[333780921,1722489041497,-500.0,0.00013972,2]
[333780922,1722489041507,-500.0,0.00013972,2]
[333780923,1722489041517,-535.57,0.00013972,2]
[333780924,1722489041535,-151.0,0.00013972,2]
[333780925,1722489041545,-151.0,0.00013972,2]
[333780926,1722489041555,-500.0,0.00013972,2]
[333780927,1722489041565,-151.0,0.00013972,2]
[333780928,1722489041577,-151.0,0.00013972,2]
[333780929,1722489041586,-500.0,0.00013972,2]
[333780930,1722489041596,-759.43,0.00013972,2]
[333780931,1722489041607,-151.0,0.00013972,2]
[333780932,1722489041620,-288.2,0.00013972,2]
[333780933,1722489041629,-285.16503747,0.00013972,2]
[333780934,1722489041638,-1337.99,0.00013972,2]
[333780935,1722489041648,-500.0,0.00013972,2]
[333780936,1722489041658,-898.62,0.00013972,2]
[333780937,1722489041667,-500.0,0.00013972,2]
[333780938,1722489041677,-500.0,0.00013972,2]
[333780939,1722489041687,-500.0,0.00013972,2]
[333780940,1722489041696,-732.27,0.00013972,2]
[333780941,1722489041706,-500.0,0.00013972,2]
[333780942,1722489041717,-610.71,0.00013972,2]
[333780943,1722489041727,-500.0,0.00013972,2]
[333780944,1722489041736,-500.0,0.00013972,2]
[333780945,1722489041746,-524.84810323,0.00013972,2]
[333780946,1722489041756,-833.69,0.00013972,2]
[333780947,1722489041768,-151.0,0.00013972,2]
[333780948,1722489041778,-500.0,0.00013972,2]
[333780949,1722489041787,-151.0,0.00013972,2]
[333780950,1722489041797,-500.0,0.00013972,2]
[333780951,1722489041807,-151.0,0.00013972,2]
[333780952,1722489041818,-151.0,0.00013972,2]
[333780953,1722489041828,-151.0,0.00013972,2]
[333780954,1722489041838,-151.0,0.00013972,2]
[333780955,1722489041847,-500.0,0.00013972,2]
[333780956,1722489041857,-500.0,0.00013972,2]
[333780957,1722489041867,-864.63,0.00013972,2]
[333780958,1722489041880,-151.0,0.00013972,2]
[333780959,1722489041891,-151.0,0.00013972,2]
[333780960,1722489041901,-500.0,0.00013972,2]
[333780961,1722489041911,-151.0,0.00013972,2]
[333780962,1722489041922,-151.0,0.00013972,2]
[333780963,1722489041932,-500.0,0.00013972,2]
[333780964,1722489041944,-535.08,0.00013972,2]
[333780965,1722489041955,-509.97,0.00013972,2]
[333780966,1722489041966,-581.3,0.00013972,2]
[333780967,1722489041976,-500.0,0.00013972,2]
[333780968,1722489041987,-1326.49,0.00013972,2]
[333780969,1722489041998,-500.0,0.00013972,2]
[333780970,1722489042008,-151.0,0.00013972,2]
[333780971,1722489042020,-151.0,0.00013972,2]
[333780972,1722489042031,-493.374022,0.00013972,2]
[333780973,1722489042041,-493.374022,0.00013972,2]
[333780974,1722489042051,-151.0,0.00013972,2]
[333780975,1722489042061,-151.0,0.00013972,2]
[333780976,1722489042073,-493.374022,0.00013972,2]
[333780977,1722489042083,-493.374022,0.00013972,2]
[333780978,1722489042100,-151.0,0.00013972,2]
[333780979,1722489042109,-500.0,0.00013972,2]
[333780980,1722489042120,-1394.07,0.00013972,2]
[333780981,1722489042130,-500.0,0.00013972,2]
[333780982,1722489042140,-500.0,0.00013972,2]
[333780983,1722489042150,-957.86,0.00013972,2]
[333780984,1722489042160,-500.0,0.00013972,2]
[333780985,1722489042172,-500.0,0.00013972,2]
[333780986,1722489042182,-1033.37,0.00013972,2]
[333780987,1722489042193,-1871.85,0.00013972,2]
[333780988,1722489042203,-611.37,0.00013972,2]
[333780989,1722489042213,-500.0,0.00013972,2]
[333780990,1722489042222,-500.0,0.00013972,2]
[333780991,1722489042233,-1083.53,0.00013972,2]
[333780992,1722489042243,-500.0,0.00013972,2]
[333780993,1722489042254,-500.0,0.00013972,2]
[333780994,1722489042265,-1004.66,0.00013972,2]
[333780995,1722489042288,-500.0,0.00013972,2]
[333780996,1722489042299,-500.0,0.00013972,2]
[333780997,1722489042308,-151.0,0.00013972,2]
[333780998,1722489042317,-151.0,0.00013972,2]
[333780999,1722489042328,-624.22,0.00013972,2]
[333781000,1722489042338,-640.12,0.00013972,2]
[333781001,1722489042347,-500.0,0.00013972,2]
[333781002,1722489042357,-542.14,0.00013972,2]
[333781003,1722489042366,-151.0,0.00013972,2]
[333781004,1722489042376,-151.0,0.00013972,2]
[333781005,1722489042386,-500.0,0.00013972,2]
[333781006,1722489042395,-633.62,0.00013972,2]
[333781007,1722489042404,-151.0,0.00013972,2]
[333781008,1722489042414,-151.0,0.00013972,2]
[333781009,1722489042423,-151.0,0.00013972,2]
[333781010,1722489042433,-151.0,0.00013972,2]
[333781011,1722489042443,-500.0,0.00013972,2]
[333781012,1722489042550,-773.8,0.00013972,2]
[333781013,1722489042561,-898.37,0.00013972,2]
[333781014,1722489042572,-500.0,0.00013972,2]
[333781015,1722489042582,-500.0,0.00013972,2]
[333781016,1722489042591,-1938.49,0.00013972,2]
[333781017,1722489042601,-3316.68,0.00013972,2]
[333781018,1722489042610,-500.0,0.00013972,2]
[333781019,1722489042620,-1095.07,0.00013972,2]
[333781020,1722489042629,-736.96,0.00013972,2]
[333781021,1722489042639,-151.0,0.00013972,2]
[333781022,1722489042649,-151.0,0.00013972,2]
[333781023,1722489042658,-500.0,0.00013972,2]
[333781024,1722489042668,-510.98180364,0.00013972,2]
[333781025,1722489042678,-1478.01,0.00013972,2]
[333781026,1722489042688,-839.49,0.00013972,2]
[333781027,1722489042698,-500.0,0.00013972,2]
[333781028,1722489042707,-284.82943826,0.00013972,2]
[333781034,1722489042990,-591.51,0.00013698,2]
[333781035,1722489043000,-500.0,0.00013698,2]
[333781036,1722489043010,-536.06056174,0.00013972,2]
[333781037,1722489043019,-151.0,0.00013972,2]
[333781039,1722489043028,-151.0,0.00013972,2]
[333781041,1722489043038,-151.0,0.00013972,2]
[333781043,1722489043047,-899.99,0.00013972,2]
[333781045,1722489043056,-611.12,0.00013972,2]
[333781047,1722489043065,-81.91999532,0.00013972,2]
[333781051,1722489043089,-418.08000468,0.00013972,2]
[333781053,1722489043098,-151.0,0.00013972,2]
[333781055,1722489043108,-1098.83,0.00013972,2]
[333781056,1722489043121,-151.0,0.00013972,2]
[333781058,1722489043130,-651.66,0.00013972,2]
[333781060,1722489043140,-500.0,0.00013972,2]
[333781062,1722489043150,-500.0,0.00013972,2]
[333781064,1722489043159,-969.31,0.00013972,2]
[333781066,1722489043169,-1728.04,0.00013972,2]
[333781067,1722489043178,-204.37999532,0.00013972,2]
[333781068,1722489043190,-311.59922471,0.00013972,2]
[333781070,1722489043200,-577.40179431,0.00013972,2]
[333781072,1722489043220,-36.07820569,0.00013972,2]
[333781073,1722489043231,-500.0,0.00013972,2]
[333781074,1722489043242,-500.0,0.00013972,2]
[333781075,1722489043252,-151.0,0.00013972,2]
[333781077,1722489043264,-151.0,0.00013972,2]
[333781079,1722489043278,-945.29,0.00013972,2]
[333781081,1722489043302,-500.0,0.00013972,2]
[333781082,1722489043312,-506.98880212,0.00013972,2]
[333781084,1722489043322,-1499.54,0.00013972,2]
[333781086,1722489043332,-605.7,0.00013972,2]
[333781087,1722489043343,-500.0,0.00013972,2]
[333781088,1722489043355,-551.47,0.00013972,2]
[333781089,1722489043364,-506.02700419,0.00013972,2]
[333781090,1722489043374,-151.0,0.00013972,2]
[333781091,1722489043385,-151.0,0.00013972,2]
[333781092,1722489043396,-151.0,0.00013972,2]
[333781093,1722489043406,-5202.94,0.00013972,2]
[333781094,1722489043415,-151.0,0.00013972,2]
[333781095,1722489043424,-500.0,0.00013972,2]
[333781096,1722489043434,-765.03,0.00013972,2]
[333781097,1722489043443,-500.0,0.00013972,2]
[333781098,1722489043454,-4954.28,0.00013972,2]
[333781099,1722489043463,-500.0,0.00013972,2]
[333781100,1722489043473,-500.0,0.00013972,2]
[333781101,1722489043483,-591.51,0.00013972,2]
[333781102,1722489043492,-500.0,0.00013972,2]
[333781103,1722489043501,-2970.17,0.00014,2]
[333781104,1722489043511,-206.9081725,0.00014,2]
[333781105,1722489043520,-307.5336587,0.00014,2]
[333781106,1722489043530,-153.0470608,0.00014,2]
[333781107,1722489043541,-206.9081725,0.00014,2]
[333781108,1722489043553,-153.0,0.00014,2]
[333781109,1722489043564,-153.0,0.00014,2]
[333781110,1722489043575,-153.0,0.00014,2]
[333781111,1722489043585,-153.0,0.00014,2]
[333781112,1722489043596,-294.1445528,0.00014,2]
[333781113,1722489043607,-153.0,0.00014,2]
[333781114,1722489043617,-153.0,0.00014,2]
[333781115,1722489043627,-226.6665527,0.00014,2]
[333781116,1722489043638,-151.0,0.00014,2]
[333781117,1722489043648,-334.37182484,0.00014,2]
[333781118,1722489043658,-2804.97182169,0.00014009,2]
[333781119,1722489043668,-167.788056,0.00014065,2]
[333781120,1722489043679,-151.0,0.00014136,2]
[333781121,1722489043688,-22786.5812864,0.00014136,2]
[333781122,1722489043698,-2804.97182169,0.00014146,2]
[333781123,1722489043707,-151.0,0.00014226,2]
[333781124,1722489043718,-151.0,0.00014226,2]
[333781125,1722489043729,-151.0,0.00014226,2]
[333781126,1722489043739,-151.0,0.00014226,2]
[333781127,1722489043750,-151.0,0.00014226,2]
[333781128,1722489043759,-151.0,0.00014226,2]
[333781129,1722489043769,-151.0,0.00014226,2]
[333781130,1722489043778,-151.0,0.00014226,2]
[333781131,1722489043807,-9.53827742,0.00014226,2]
[333781132,1722489044301,-514.18398,0.0001395,2]
[333781133,1722489044318,-514.18398,0.00013962,2]
[333781134,1722489044328,-514.18398,0.00013972,2]
[333781135,1722489044337,-514.18398,0.00013972,2]
[333781136,1722489044346,-141.46172258,0.00014226,2]
[333781137,1722489044355,-514.18398,0.00014226,2]
[333781138,1722489044365,-500.0,0.00014233,2]
[333781139,1722489044375,-2052.55,0.00014233,2]
[333781140,1722489044386,-151.0,0.00014234,2]
[333781141,1722489044395,-151.0,0.00014234,2]
[333781142,1722489044405,-151.0,0.00014234,2]
[333781143,1722489044414,-151.0,0.00014234,2]
[333781144,1722489044424,-151.0,0.00014234,2]
[333781145,1722489044433,-151.0,0.00014234,2]
[333781146,1722489044443,-151.0,0.00014234,2]
[333781147,1722489044452,-151.0,0.00014234,2]
[333781148,1722489044461,-493.374022,0.00014234,2]
[333781149,1722489044470,-151.0,0.00014234,2]
[333781150,1722489044480,-493.374022,0.00014234,2]
[333781151,1722489044491,-797.94,0.00014234,2]
[333781152,1722489044501,-4283.79,0.00014234,2]
[333781153,1722489044511,-538.96,0.00014234,2]
[333781154,1722489044522,-500.0,0.00014235,2]
[333781155,1722489044531,-151.0,0.00014236,2]
[333781156,1722489044541,-151.0,0.00014236,2]
[333781157,1722489044550,-151.0,0.00014236,2]
[333781158,1722489044560,-45573.1625727,0.00014236,2]
[333781159,1722489044664,-203.105408,0.00014245,2]
[333781160,1722489044674,-230.24031183,0.00014245,2]
[333781161,1722489044684,-157.24136,0.00014245,2]
[333781162,1722489044693,-2052.55,0.00014245,2]
[333781163,1722489044702,-2052.55,0.00014245,2]
[333781164,1722489044712,-14437.56596571,0.00014246,5]
[333781165,1722489044721,-2738.47,0.00014246,2]
[333781166,1722489044731,-2085.52,0.00014246,2]
[333781167,1722489044752,-500.0,0.00014246,2]
[333781168,1722489044763,-500.0,0.00014246,2]
[333781169,1722489044773,-535.57,0.00014246,2]
[333781170,1722489044783,-151.0,0.00014246,2]
[333781171,1722489044800,-500.0,0.00014246,2]
[333781172,1722489044810,-151.0,0.00014246,2]
[333781173,1722489044824,-599.43932052,0.00014246,2]
[333781174,1722489044835,-759.43,0.00014246,2]
[333781175,1722489044845,-500.0,0.00014246,2]
[333781176,1722489044856,-898.62,0.00014246,2]
[333781177,1722489044867,-500.0,0.00014246,2]
[333781178,1722489044878,-500.0,0.00014246,2]
[333781179,1722489044888,-500.0,0.00014246,2]
[333781180,1722489044898,-732.27,0.00014246,2]
[333781181,1722489044910,-500.0,0.00014246,2]
[333781182,1722489044920,-610.71,0.00014246,2]
[333781183,1722489044930,-500.0,0.00014246,2]
[333781184,1722489044940,-500.0,0.00014246,2]
[333781185,1722489044951,-833.69,0.00014246,2]
[333781186,1722489044962,-500.0,0.00014246,2]
[333781187,1722489044973,-151.829439,0.00014246,2]
[333781188,1722489044984,-500.0,0.00014246,2]
[333781189,1722489044994,-151.0,0.00014246,2]
[333781190,1722489045004,-151.0,0.00014246,2]
[333781191,1722489045014,-224.923114,0.00014246,2]
[333781192,1722489045025,-500.0,0.00014246,2]
[333781193,1722489045035,-500.0,0.00014246,2]
[333781194,1722489045054,-864.63,0.00014246,2]
[333781195,1722489045065,-151.0,0.00014246,2]
[333781196,1722489045076,-151.0,0.00014246,2]
[333781197,1722489045086,-500.0,0.00014246,2]
[333781198,1722489045099,-151.0,0.00014246,2]
[333781199,1722489045109,-151.0,0.00014246,2]
[333781200,1722489045120,-500.0,0.00014246,2]
[333781201,1722489045130,-535.08,0.00014246,2]
[333781202,1722489045140,-509.97,0.00014246,2]
[333781203,1722489045150,-581.3,0.00014246,2]
[333781204,1722489045160,-500.0,0.00014246,2]
[333781205,1722489045171,-1326.49,0.00014246,2]
[333781206,1722489045181,-500.0,0.00014246,2]
[333781207,1722489045191,-151.0,0.00014246,2]
[333781208,1722489045201,-151.0,0.00014246,2]
[333781209,1722489045212,-493.374022,0.00014246,2]
[333781210,1722489045222,-493.374022,0.00014246,2]
[333781211,1722489045232,-493.374022,0.00014246,2]
[333781212,1722489045242,-493.374022,0.00014246,2]
[333781213,1722489045252,-151.0,0.00014246,2]
[333781214,1722489045262,-151.0,0.00014246,2]
[333781215,1722489045272,-500.0,0.00014246,2]
[333781216,1722489045282,-1394.07,0.00014246,2]
[333781217,1722489045293,-241.53469699,0.00014246,2]
[333781218,1722489045313,-416.92682763,0.00014246,2]
[333781219,1722489045460,-83.07317237,0.00014246,2]
[333781220,1722489045470,-957.86,0.00014246,2]
[333781221,1722489045479,-500.0,0.00014246,2]
[333781222,1722489045489,-365.21649624,0.00014246,2]
[333781223,1722489045498,-1033.37,0.00014246,2]
[333781224,1722489045507,-1871.85,0.00014246,2]
[333781225,1722489045518,-611.37,0.00014246,2]
[333781226,1722489045527,-500.0,0.00014246,2]
[333781227,1722489045537,-445.76033139,0.00014246,2]
[333781291,1722489046680,-500.0,0.00013698,2]
[333781293,1722489046690,-151.0,0.00013698,2]
[333781294,1722489046700,-514.18398,0.0001395,2]
[333781295,1722489046709,-514.18398,0.00013962,2]
[333781296,1722489046719,-514.18398,0.00013972,2]
[333781297,1722489046730,-514.18398,0.00013972,2]
[333781299,1722489046740,-514.18398,0.00014226,2]
[333781300,1722489046750,-54.23966861,0.00014246,2]
[333781302,1722489046760,-500.0,0.00014246,2]
[333781303,1722489046770,-500.0,0.00014246,2]
[333781304,1722489046781,-1004.66,0.00014246,2]
[333781305,1722489046791,-167.04356515,0.00014246,2]
[333781318,1722489126848,231.40661786,9.999e-05,2]
[333781321,1722489268710,200.88187548,9.999e-05,2]
[333781328,1722489766751,244.74168763,9.999e-05,2]
[333781467,1722490238624,-459.45606609,0.00012119,2]
[333781468,1722490238749,-903.54824381,0.00012433,2]
[333781469,1722490238760,-1264.0305213,0.00012533,2]
[333781470,1722490238771,-187.686119,0.00012986,2]
[333781471,1722490238781,-300.0,0.00013687,2]
[333781472,1722490238792,-12681.61615291,0.00013688,2]
[333781494,1722490240669,-4627.86394949,0.00013688,2]
[333781495,1722490240681,-500.0,0.00013697,2]
[333781496,1722490240692,-500.0,0.00013698,2]
[333781497,1722490240705,-500.0,0.00013698,2]
[333781498,1722490240715,-500.0,0.00013698,2]
[333781500,1722490240724,-500.0,0.00013698,2]
[333781501,1722490240735,-503.89189947,0.00013698,2]
[333781502,1722490240747,-500.0,0.00013698,2]
[333781503,1722490240757,-500.0,0.00013698,2]
[333781504,1722490240767,-1226.49,0.00013698,2]
[333781505,1722490240777,-500.0,0.00013698,2]
[333781506,1722490240786,-500.0,0.00013698,2]
[333781507,1722490240797,-569.98546556,0.00013698,2]
[333781508,1722490240808,-530.0630661,0.00013698,2]
[333781509,1722490240818,-593.0,0.00013698,2]
[333781510,1722490240829,-267.35923123,0.00013698,2]
[333781511,1722490240840,-500.0,0.00013698,2]
[333781512,1722490240849,-500.0,0.00013698,2]
[333781513,1722490240860,-500.0,0.00013698,2]
[333781514,1722490240869,-500.0,0.00013698,2]
[333781515,1722490240880,-500.0,0.00013698,2]
[333781516,1722490240889,-500.0,0.00013698,2]
[333781517,1722490240900,-500.0,0.00013698,2]
[333781518,1722490240910,-555.21,0.00013698,2]
[333781519,1722490240921,-500.0,0.00013698,2]
[333781520,1722490240931,-500.0,0.00013698,2]
[333781521,1722490240940,-500.0,0.00013698,2]
[333781522,1722490240951,-500.0,0.00013698,2]
[333781523,1722490240961,-729.48,0.00013698,2]
[333781524,1722490240972,-162.79586153,0.00013698,2]
[333781525,1722490240982,-538.12380181,0.00013698,2]
[333781526,1722490240992,-572.2,0.00013698,2]
[333781527,1722490241002,-500.0,0.00013698,2]
[333781528,1722490241011,-500.0,0.00013698,2]
[333781529,1722490241021,-502.38144109,0.00013698,2]
[333781530,1722490241031,-500.0,0.00013698,2]
[333781531,1722490241040,-500.0,0.00013698,2]
[333781532,1722490241050,-500.0,0.00013698,2]
[333781533,1722490241059,-500.0,0.00013698,2]
[333781534,1722490241070,-500.0,0.00013698,2]
[333781535,1722490241079,-500.0,0.00013698,2]
[333781536,1722490241090,-502.36386338,0.00013698,2]
[333781537,1722490241099,-500.0,0.00013698,2]
[333781538,1722490241110,-500.0,0.00013698,2]
[333781539,1722490241120,-500.0,0.00013698,2]
[333781540,1722490241130,-500.0,0.00013698,2]
[333781541,1722490241140,-500.0,0.00013698,2]
[333781542,1722490241150,-500.0,0.00013698,2]
[333781543,1722490241159,-501.79866485,0.00013698,2]
[333781544,1722490241170,-500.0,0.00013698,2]
[333781545,1722490241179,-500.0,0.00013698,2]
[333781546,1722490241188,-500.18116894,0.00013698,2]
[333781547,1722490241199,-756.55,0.00013698,2]
[333781548,1722490241211,-500.0,0.00013698,2]
[333781549,1722490241223,-500.0,0.00013698,2]
[333781550,1722490241232,-514.22,0.00013698,2]
[333781551,1722490241243,-500.0,0.00013698,2]
[333781552,1722490241252,-556.29,0.00013698,2]
[333781553,1722490241262,-500.0,0.00013698,2]
[333781554,1722490241272,-500.0,0.00013698,2]
[333781555,1722490241282,-506.43917156,0.00013698,2]
[333781556,1722490241291,-500.0,0.00013698,2]
[333781557,1722490241301,-500.0,0.00013698,2]
[333781558,1722490241311,-500.0,0.00013698,2]
[333781559,1722490241320,-501.73399391,0.00013698,2]
[333781560,1722490241330,-500.0,0.00013698,2]
[333781561,1722490241341,-500.0,0.00013698,2]
[333781562,1722490241352,-500.0,0.00013698,2]
[333781563,1722490241361,-501.65662547,0.00013698,2]
[333781564,1722490241371,-503.47977507,0.00013698,2]
[333781565,1722490241381,-500.0,0.00013698,2]
[333781566,1722490241390,-500.0,0.00013698,2]
[333781567,1722490241400,-500.0,0.00013698,2]
[333781568,1722490241410,-500.0,0.00013698,2]
[333781569,1722490241419,-500.0,0.00013698,2]
[333781570,1722490241429,-507.17993449,0.00013698,2]
[333781571,1722490241438,-1637.87,0.00013698,2]
[333781572,1722490241450,-500.0,0.00013698,2]
[333781573,1722490241464,-341.43833868,0.00013698,2]
[333781574,1722490241474,-500.0,0.00013698,2]
[333781575,1722490241484,-176.439896,0.00013698,2]
[333781576,1722490241496,-500.0,0.00013698,2]
[333781577,1722490241506,-500.0,0.00013698,2]
[333781578,1722490241515,-502.59190367,0.00013698,2]
[333781579,1722490241525,-500.0,0.00013698,2]
[333781580,1722490241537,-500.0,0.00013698,2]
[333781581,1722490241547,-500.0,0.00013698,2]
[333781582,1722490241557,-500.0,0.00013698,2]
[333781583,1722490241567,-500.0,0.00013698,2]
[333781584,1722490241576,-500.0,0.00013698,2]
[333781585,1722490241586,-500.0,0.00013698,2]
[333781586,1722490241595,-4958.22,0.00013698,2]
[333781587,1722490241605,-500.0,0.00013698,2]
[333781588,1722490241615,-505.14401387,0.00013698,2]
[333781589,1722490241625,-1066.38,0.00013698,2]
[333781590,1722490241634,-500.0,0.00013698,2]
[333781591,1722490241643,-500.0,0.00013698,2]
[333781592,1722490241652,-500.0,0.00013698,2]
[333781593,1722490241661,-257.42249911,0.00013698,2]
[333781594,1722490241671,-500.0,0.00013698,2]
[333781595,1722490241681,-500.0,0.00013698,2]
[333781596,1722490241691,-500.0,0.00013698,2]
[333781597,1722490241700,-500.0,0.00013698,2]
[333781598,1722490241711,-574.94,0.00013698,2]
[333781599,1722490241721,-500.0,0.00013698,2]
[333781600,1722490241731,-500.0,0.00013698,2]
[333781601,1722490241740,-577.16,0.00013698,2]
[333781602,1722490241753,-500.0,0.00013698,2]
[333781603,1722490241764,-500.0,0.00013698,2]
[333781604,1722490241774,-500.0,0.00013698,2]
[333781605,1722490241783,-500.0,0.00013698,2]
[333781606,1722490241794,-1296.94,0.00013698,2]
[333781607,1722490241803,-500.0,0.00013698,2]
[333781608,1722490241814,-500.0,0.00013698,2]
[333781609,1722490241824,-611.56,0.00013698,2]
[333781610,1722490241835,-500.0,0.00013698,2]
[333781611,1722490241845,-500.0,0.00013698,2]
[333781612,1722490241856,-947.22,0.00013698,2]
[333781613,1722490241865,-500.0,0.00013698,2]
[333781614,1722490241876,-746.21,0.00013698,2]
[333781615,1722490241887,-3291.43,0.00013698,2]
[333781616,1722490241897,-500.0,0.00013698,2]
[333781617,1722490241907,-500.0,0.00013698,2]
[333781618,1722490241918,-1776.95,0.00013698,2]
[333781619,1722490241929,-728.21,0.00013698,2]
[333781620,1722490241938,-629.37,0.00013698,2]
[333781621,1722490241949,-516.48,0.00013698,2]
[333781622,1722490241959,-503.23932751,0.00013698,2]
[333781623,1722490241969,-181.20532155,0.00013698,2]
[333781624,1722490241978,-500.0,0.00013698,2]
[333781625,1722490241988,-173.85620724,0.00013698,2]
[333781626,1722490242000,-500.0,0.00013698,2]
[333781627,1722490242010,-500.0,0.00013698,2]
[333781628,1722490242022,-601.0,0.00013698,2]
[333781629,1722490242032,-881.48,0.00013698,2]
[333781630,1722490242042,-832.32,0.00013698,2]
[333781631,1722490242052,-500.0,0.00013698,2]
[333781632,1722490242061,-500.0,0.00013698,2]
[333781633,1722490242071,-500.0,0.00013698,2]
[333781634,1722490242081,-805.16,0.00013698,2]
[333781635,1722490242092,-500.0,0.00013698,2]
[333781636,1722490242102,-644.01,0.00013698,2]
[333781637,1722490242112,-500.0,0.00013698,2]
[333781638,1722490242121,-1080.94,0.00013698,2]
[333781639,1722490242131,-444.93958877,0.00013698,2]
[333781670,1722490243605,-23.75185787,0.00013698,2]
[333781671,1722490243617,-31.30855336,0.00013698,2]
[333781672,1722490243627,-1470.03,0.00013698,2]
[333781673,1722490243637,-1064.4752497,0.00013698,2]
[333781674,1722490243649,-623.9847503,0.00013698,2]
[333781675,1722490243659,-500.0,0.00013698,2]
[333781676,1722490243670,-868.21,0.00013698,2]
[333781677,1722490243681,-500.0,0.00013698,2]
[333781678,1722490243693,-930.92,0.00013698,2]
[333781679,1722490243703,-500.0,0.00013698,2]
[333781680,1722490243713,-1374.57,0.00013698,2]
[333781681,1722490243723,-500.0,0.00013698,2]
[333781682,1722490243734,-602.68513681,0.00013698,2]
[333781683,1722490243746,-314.55491052,0.00013698,2]
[333781684,1722490243758,-185.44508948,0.00013698,2]
[333781685,1722490243767,-183.48238557,0.00013698,2]
[333781686,1722490243780,-549.75761443,0.00013698,2]
[333781688,1722490243790,-500.0,0.00013698,2]
[333781690,1722490243800,-500.0,0.00013698,2]
[333781691,1722490243809,-500.0,0.00013698,2]
[333781692,1722490243819,-4769.36,0.00013698,2]
[333781693,1722490243830,-504.69653273,0.00013698,2]
[333781694,1722490243839,-671.25,0.00013698,2]
[333781695,1722490243849,-887.35,0.00013698,2]
[333781696,1722490243859,-504.68171436,0.00013698,2]
[333781697,1722490243868,-258.98952088,0.00013698,2]
[333781698,1722490243877,-934.54,0.00013698,2]
[333781699,1722490243887,-500.0,0.00013698,2]
[333781700,1722490243897,-502.29824516,0.00013698,2]
[333781701,1722490243906,-501.36699702,0.00013698,2]
[333781702,1722490243916,-1058.65,0.00013698,2]
[333781703,1722490243926,-542.21,0.00013698,2]
[333781704,1722490243936,-500.0,0.00013698,2]
[333781705,1722490243946,-500.0,0.00013698,2]
[333781706,1722490243955,-555.23,0.00013698,2]
[333781707,1722490243965,-500.0,0.00013698,2]
[333781708,1722490243974,-505.51,0.00013698,2]
[333781709,1722490243984,-241.53469699,0.00013698,2]
[333781710,1722490243996,-500.0,0.00013698,2]
[333781711,1722490244006,-500.0,0.00013698,2]
[333781712,1722490244015,-858.96,0.00013698,2]
[333781713,1722490244025,-500.0,0.00013698,2]
[333781714,1722490244035,-500.0,0.00013698,2]
[333781715,1722490244045,-500.0,0.00013698,2]
[333781716,1722490244055,-1277.9,0.00013698,2]
[333781717,1722490244064,-504.66471826,0.00013698,2]
[333781718,1722490244074,-500.0,0.00013698,2]
[333781719,1722490244084,-753.23,0.00013698,2]
[333781720,1722490244094,-500.0,0.00013698,2]
[333781721,1722490244103,-505.58908851,0.00013698,2]
[333781722,1722490244112,-504.29511404,0.00013698,2]